bitfinex/quotes_SOLUSD_20220216
["timestamp","ask_amount","ask_price","bid_price","bid_amount"]
[1645013523296,49.12556406,102.49,102.42,45.92714247]
[1645013523497,49.12556406,102.49,102.42,60.57084247]
[1645013523897,1.37720641,102.48,102.42,60.57084247]
[1645013524998,0.25,102.47,102.42,60.57084247]
[1645013526401,39.94103467,102.47,102.42,60.57084247]
[1645013526599,39.94103467,102.47,102.42,45.92714247]
[1645013528206,39.94103467,102.47,102.41,23.1899]
[1645013528406,41.31824108,102.47,102.41,23.1899]
[1645013529206,41.31824108,102.47,102.41,62.82781232]
[1645013529812,55.96474108,102.47,102.41,62.82781232]
[1645013532110,55.96474108,102.47,102.41,77.47331232]
[1645013532509,16.27370641,102.47,102.41,77.47331232]
[1645013532909,14.6465,102.47,102.41,77.47331232]
[1645013533310,1.37720641,102.48,102.41,77.47331232]
[1645013533512,16.02150641,102.48,102.41,77.47331232]
[1645013534411,0.25,102.47,102.41,77.47331232]
[1645013535412,37.70549176,102.47,102.41,77.47331232]
[1645013536513,52.35119176,102.47,102.41,77.47331232]
[1645013536714,53.72839817,102.47,102.41,77.47331232]
[1645013541416,16.27290641,102.47,102.41,77.47331232]
[1645013543723,14.8957,102.47,102.41,77.47331232]
[1645013543924,16.27290641,102.47,102.41,77.47331232]
[1645013545924,0.25,102.47,102.41,174.95331232]
[1645013546125,0.25,102.47,102.41,82.77831232]
[1645013547131,14.8951,102.47,102.41,82.77831232]
[1645013547329,14.8951,102.47,102.41,77.47331232]
[1645013547528,16.27230641,102.47,102.41,77.47331232]
[1645013550468,1.62720641,102.47,102.41,174.95331232]
[1645013550869,0.25,102.47,102.41,174.95331232]
[1645013557679,0.25,102.47,102.42,0.25]
[1645013557879,0.25,102.47,102.43,14.6395]
[1645013558078,1.37720641,102.49,102.44,24.3856]
[1645013558480,1.37720641,102.49,102.45,37.44861222]
[1645013558881,1.37720641,102.49,102.45,52.08851222]
[1645013559886,1.37720641,102.49,102.44,39.027]
[1645013560091,1.37720641,102.48,102.44,24.3856]
[1645013560790,1.37720641,102.48,102.45,44.87835062]
[1645013561090,1.37720641,102.48,102.46,3.03219997]
[1645013561291,0.25,102.47,102.46,3.03219997]
[1645013561992,0.25,102.47,102.45,44.87835062]
[1645013562392,1.62720641,102.48,102.45,44.87835062]
[1645013562692,1.62720641,102.48,102.46,3.03219997]
[1645013562892,1.62720641,102.48,102.45,44.87835062]
[1645013563093,36.83942789,102.48,102.44,24.3856]
[1645013563292,51.48332789,102.48,102.44,24.3856]
[1645013563492,51.48332789,102.48,102.42,14.6445]
[1645013564096,51.48332789,102.48,102.42,45.17825725]
[1645013564396,43.66028104,102.46,102.42,45.17825725]
[1645013564595,58.30818104,102.46,102.42,45.17825725]
[1645013564798,0.25,102.45,102.42,45.17825725]
[1645013565596,0.25,102.45,102.43,3.03219997]
[1645013565995,14.898,102.45,102.43,3.03219997]
[1645013567498,14.898,102.45,102.39,62.568]
[1645013568211,14.898,102.45,102.4,34.64924855]
[1645013569813,52.30256558,102.44,102.4,34.64924855]
[1645013570113,14.6494,102.44,102.4,34.64924855]
[1645013570312,0.25,102.43,102.4,34.64924855]
[1645013574114,0.25,102.43,102.41,0.81159034]
[1645013575016,0.25,102.43,102.4,34.64924855]
[1645013575416,72.90730641,102.46,102.4,34.64924855]
[1645013575417,0.25,102.44,102.4,34.64924855]
[1645013575618,0.25,102.44,102.4,132.12924855]
[1645013575822,0.25,102.45,102.4,132.12924855]
[1645013576229,1.62720641,102.47,102.4,132.12924855]
[1645013576724,0.25,102.47,102.4,132.12924855]
[1645013576927,14.8956,102.47,102.4,146.77674855]
[1645013577123,14.6456,102.47,102.4,146.77674855]
[1645013577527,1.37720641,102.48,102.4,146.77674855]
[1645013577726,1.37720641,102.48,102.41,23.6353]
[1645013577925,16.02150641,102.48,102.42,14.6447]
[1645013578326,0.25,102.47,102.42,14.6447]
[1645013578525,0.25,102.47,102.43,38.66156733]
[1645013580328,14.8954,102.47,102.43,38.66156733]
[1645013581636,0.25,102.47,102.43,38.66156733]
[1645013582241,0.25,102.48,102.43,38.66156733]
[1645013582433,0.25,102.49,102.43,38.66156733]
[1645013582833,0.25,102.49,102.43,53.30486733]
[1645013583635,0.25,102.49,102.43,76.68396733]
[1645013585441,1.62720641,102.49,102.43,76.68396733]
[1645013585839,37.81969506,102.49,102.43,76.68396733]
[1645013586038,52.46239506,102.49,102.43,76.68396733]
[1645013586440,52.46239506,102.49,102.43,38.66156733]
[1645013586752,1.37720641,102.48,102.43,38.66156733]
[1645013587137,0.25,102.47,102.43,38.66156733]
[1645013587839,14.8953,102.47,102.43,38.66156733]
[1645013588440,65.05218417,102.47,102.43,38.66156733]
[1645013588839,16.27250641,102.47,102.43,38.66156733]
[1645013590642,34.24554051,102.46,102.41,39.3534]
[1645013590844,0.25,102.45,102.41,39.3534]
[1645013591543,0.25,102.45,102.41,24.7075]
[1645013591743,0.25,102.45,102.41,63.19789881]
[1645013592145,0.25,102.45,102.41,38.49039881]
[1645013593046,14.8983,102.45,102.41,38.49039881]
[1645013593245,48.41095914,102.44,102.41,38.49039881]
[1645013593445,48.41095914,102.44,102.39,61.4348]
[1645013593649,0.25,102.43,102.39,61.4348]
[1645013593846,0.25,102.43,102.39,46.7861]
[1645013594046,0.25,102.43,102.37,97.48]
[1645013594253,0.25,102.43,102.38,14.65]
[1645013594447,0.25,102.43,102.39,45.46891199]
[1645013595447,14.9011,102.43,102.37,39.4797]
[1645013595849,14.9011,102.43,102.37,24.8282]
[1645013596349,14.9011,102.43,102.38,34.79354157]
[1645013597449,34.847393,102.42,102.38,34.79354157]
[1645013597649,14.6539,102.41,102.37,24.8282]
[1645013597850,14.9039,102.41,102.35,37.9042]
[1645013598653,14.9039,102.41,102.36,46.80731212]
[1645013603876,0.25,102.41,102.36,61.46031212]
[1645013604075,14.653,102.42,102.36,85.35831212]
[1645013604277,23.5901,102.44,102.36,85.35831212]
[1645013604877,67.61194788,102.44,102.36,85.35831212]
[1645013605877,14.9014,102.43,102.36,85.35831212]
[1645013606479,14.6514,102.43,102.36,85.35831212]
[1645013607881,0.25,102.42,102.36,85.35831212]
[1645013610288,14.6514,102.43,102.36,85.35831212]
[1645013611690,0.25,102.42,102.36,182.83831212]
[1645013615395,0.25,102.43,102.36,182.83831212]
[1645013616797,83.63915429,102.44,102.36,182.83831212]
[1645013617297,82.26194788,102.44,102.36,182.83831212]
[1645013617596,82.26194788,102.44,102.36,14.653]
[1645013617795,1.37720641,102.42,102.33,0.54327148]
[1645013617997,14.6577,102.4,102.33,0.54327148]
[1645013618195,16.03490641,102.4,102.33,0.54327148]
[1645013618395,1.62720641,102.39,102.33,0.54327148]
[1645013618598,48.42587414,102.39,102.34,47.34512288]
[1645013618795,97.29047414,102.39,102.34,47.34512288]
[1645013618995,14.6594,102.38,102.34,47.34512288]
[1645013619194,14.6594,102.38,102.33,0.54327148]
[1645013619396,0.25,102.37,102.33,0.54327148]
[1645013620497,0.25,102.38,102.33,0.54327148]
[1645013620895,14.6601,102.36,102.33,0.54327148]
[1645013621296,0.25,102.35,102.33,0.54327148]
[1645013622095,51.56049254,102.34,102.33,0.54327148]
[1645013622296,51.81049254,102.34,102.33,0.54327148]
[1645013623396,14.9123,102.34,102.33,0.54327148]
[1645013625202,14.9123,102.34,102.31,0.998671]
[1645013625203,126.54,102.33,102.31,0.998671]
[1645013625403,14.6663,102.32,102.31,0.998671]
[1645013625906,14.9163,102.32,102.31,0.998671]
[1645013626203,61.30946952,102.32,102.31,0.998671]
[1645013633114,0.99,102.31,102.3,0.59410064]
[1645013633318,1.24,102.31,102.3,0.14915208]
[1645013633518,15.9103,102.31,102.3,0.14915208]
[1645013634519,59.77332873,102.31,102.3,0.14915208]
[1645013634917,45.10302873,102.31,102.3,0.14915208]
[1645013635119,44.11302873,102.31,102.3,0.14915208]
[1645013635317,44.11302873,102.31,102.3,0.45367029]
[1645013635740,44.11302873,102.31,102.3,0.14915208]
[1645013635942,58.78092873,102.31,102.3,0.14915208]
[1645013636941,58.53092873,102.31,102.3,0.14915208]
[1645013638240,14.03,102.33,102.3,0.14915208]
[1645013638443,29.30065188,102.38,102.3,0.14915208]
[1645013638444,25.95450641,102.37,102.3,0.14915208]
[1645013638640,5.86205188,102.38,102.31,2.77726329]
[1645013639241,44.88539736,102.37,102.31,2.77726329]
[1645013639440,59.54549736,102.37,102.31,2.77726329]
[1645013639642,59.54549736,102.37,102.31,2.92231473]
[1645013640040,59.54549736,102.37,102.31,27.85131473]
[1645013640446,59.54549736,102.37,102.32,42.68955782]
[1645013640644,0.25,102.36,102.32,42.68955782]
[1645013640842,0.25,102.36,102.31,25.07405144]
[1645013641041,14.911,102.36,102.31,25.07405144]
[1645013641947,298.04966971,102.35,102.31,0.29010288]
[1645013642148,41.60642722,102.33,102.31,0.29010288]
[1645013642346,28.6982,102.34,102.31,0.29010288]
[1645013642547,0.25,102.33,102.31,0.29010288]
[1645013643653,14.9155,102.33,102.31,0.29010288]
[1645013643855,40.50626805,102.32,102.31,0.29010288]
[1645013644253,40.75626805,102.32,102.31,0.29010288]
[1645013644654,55.42386805,102.32,102.31,0.29010288]
[1645013645053,14.9176,102.32,102.31,0.29010288]
[1645013646153,0.25,102.32,102.31,0.29010288]
[1645013649460,40.83824271,102.32,102.31,0.29010288]
[1645013649966,0.25,102.32,102.31,0.29010288]
[1645013650862,14.9164,102.32,102.31,0.29010288]
[1645013651964,14.9164,102.32,102.31,0.00010288]
[1645013652166,17.35657527,102.32,102.31,0.00010288]
[1645013652362,18.73378168,102.32,102.31,0.00010288]
[1645013653563,32.76378168,102.32,102.31,0.00010288]
[1645013654464,64.76378168,102.32,102.31,0.00010288]
[1645013654963,63.38657527,102.32,102.31,0.00010288]
[1645013655366,160.86657527,102.32,102.31,0.00010288]
[1645013655665,160.86657527,102.32,102.27,0.0670305]
[1645013655666,97.48,102.3,102.27,0.0670305]
[1645013655964,97.48,102.3,102.26,1.3139221]
[1645013655965,71.08847952,102.29,102.26,1.3139221]
[1645013656264,71.08847952,102.29,102.22,0.74305038]
[1645013656465,2.44017527,102.28,102.22,0.74305038]
[1645013656665,56.41067952,102.29,102.22,0.74305038]
[1645013656867,14.6769,102.27,102.22,0.74305038]
[1645013657270,38.98321789,102.26,102.22,0.74305038]
[1645013657966,14.676,102.25,102.24,0.00552496]
[1645013658470,14.926,102.25,102.24,0.00552496]
[1645013660172,14.6828,102.23,102.22,0.23104992]
[1645013660370,36.2688,102.23,102.2,0.25200554]
[1645013660669,38.45897527,102.23,102.2,0.25200554]
[1645013660870,0.25,102.22,102.2,0.25200554]
[1645013661069,48.09399035,102.22,102.2,0.25200554]
[1645013661693,98.79399035,102.22,102.2,0.25200554]
[1645013661870,14.6863,102.21,102.2,0.25200554]
[1645013662370,14.9363,102.21,102.2,0.00200554]
[1645013665572,28.9663,102.21,102.2,0.00200554]
[1645013666073,28.9663,102.21,102.16,1.22616558]
[1645013666274,34.50912481,102.2,102.16,1.22616558]
[1645013666474,34.75912481,102.2,102.16,1.22616558]
[1645013666674,49.44512481,102.2,102.16,1.22616558]
[1645013669477,63.47512481,102.2,102.16,1.22616558]
[1645013672581,63.47512481,102.2,102.15,0.59125992]
[1645013672787,125.6875,102.19,102.09,0.611459]
[1645013672986,125.6875,102.19,102.09,0.21390923]
[1645013673186,0.25,102.18,102.1,14.6875]
[1645013673782,37.26530358,102.18,102.1,14.6875]
[1645013673984,51.95400358,102.18,102.1,13.1875]
[1645013674585,75.64530358,102.18,102.1,13.1875]
[1645013675185,75.64530358,102.18,102.1,13.40140923]
[1645013675486,75.64530358,102.18,102.1,53.9976788]
[1645013675684,75.64530358,102.18,102.1,151.4776788]
[1645013675883,37.01530358,102.18,102.1,151.4776788]
[1645013676085,37.01530358,102.18,102.11,0.25]
[1645013676286,37.01530358,102.18,102.12,14.6858]
[1645013676485,37.01530358,102.18,102.13,44.9540181]
[1645013676789,37.01530358,102.18,102.12,14.6858]
[1645013676987,37.01530358,102.18,102.12,14.70148731]
[1645013677188,0.25,102.17,102.12,0.01568731]
[1645013678188,0.25,102.17,102.11,69.1442471]
[1645013678589,14.9392,102.17,102.11,69.1442471]
[1645013678990,34.63674157,102.16,102.11,69.1442471]
[1645013679392,0.25,102.15,102.11,69.1442471]
[1645013680297,0.25,102.15,102.11,22.9224]
[1645013682596,14.9418,102.15,102.11,22.9224]
[1645013683003,14.9418,102.15,102.1,48.11062934]
[1645013683198,45.83552454,102.14,102.1,0.19822192]
[1645013683400,0.25,102.13,102.1,0.19822192]
[1645013684514,0.25,102.14,102.1,0.19822192]
[1645013684713,0.25,102.15,102.1,0.19822192]
[1645013685112,47.25077919,102.18,102.12,37.54735047]
[1645013685713,47.25077919,102.18,102.1,24.76882192]
[1645013686513,61.93837919,102.18,102.1,24.76882192]
[1645013686716,75.96837919,102.18,102.1,61.36140552]
[1645013687116,24.2892,102.17,102.1,61.36140552]
[1645013687317,36.14803579,102.16,102.1,61.36140552]
[1645013687716,0.25,102.15,102.1,61.36140552]
[1645013687917,0.25,102.15,102.1,24.76882192]
[1645013688420,0.25,102.15,102.1,136.93832192]
[1645013688619,0.25,102.15,102.1,39.45832192]
[1645013688820,0.25,102.15,102.11,45.2793137]
[1645013689019,0.25,102.15,102.12,23.6893]
[1645013689218,25.1441,102.19,102.12,23.6893]
[1645013689419,25.1441,102.19,102.11,45.2793137]
[1645013689619,40.55880608,102.19,102.11,45.2793137]
[1645013690018,54.31204616,102.18,102.11,45.2793137]
[1645013690419,0.25,102.17,102.11,45.2793137]
[1645013691225,14.6917,102.16,102.1,0.19822192]
[1645013691423,0.25,102.15,102.1,0.19822192]
[1645013692330,0.25,102.15,102.1,39.52939893]
[1645013693526,14.6917,102.16,102.1,137.00939893]
[1645013693729,38.87040608,102.19,102.1,137.00939893]
[1645013693927,24.84040608,102.19,102.12,14.6868]
[1645013694125,23.4557,102.19,102.12,14.6868]
[1645013694326,24.84040608,102.19,102.12,14.6868]
[1645013694527,45.1542616,102.18,102.13,46.09331637]
[1645013694927,0.25,102.17,102.13,46.09331637]
[1645013696532,0.25,102.17,102.12,14.6868]
[1645013697630,0.25,102.17,102.12,59.35448697]
[1645013698437,0.25,102.17,102.12,14.6868]
[1645013698635,0.25,102.17,102.11,24.7786]
[1645013699533,0.25,102.17,102.12,43.80735242]
[1645013700335,0.25,102.17,102.11,24.7786]
[1645013700533,14.9396,102.17,102.11,24.7786]
[1645013700736,37.7064,102.17,102.11,24.7786]
[1645013700935,39.09110608,102.17,102.1,0.19822192]
[1645013701339,45.34817564,102.16,102.1,0.19822192]
[1645013701535,14.6927,102.15,102.1,0.19822192]
[1645013701734,44.21498046,102.14,102.1,0.19822192]
[1645013701935,0.25,102.13,102.1,0.19822192]
[1645013703539,42.47222215,102.15,102.1,0.19822192]
[1645013703840,42.47222215,102.15,102.1,14.88822192]
[1645013704438,42.47222215,102.15,102.11,34.18354522]
[1645013704839,0.25,102.15,102.11,34.18354522]
[1645013705439,0.25,102.15,102.1,0.19822192]
[1645013706441,35.51104445,102.15,102.1,39.25909663]
[1645013707944,50.20304445,102.15,102.1,0.19822192]
[1645013713148,2.44017527,102.14,102.1,0.19822192]
[1645013713351,14.9483,102.13,102.1,0.19822192]
[1645013713849,45.90997616,102.12,102.1,0.19822192]
[1645013714262,0.25,102.11,102.1,0.19822192]
[1645013714549,14.9483,102.11,102.1,0.19822192]
[1645013719882,69.59137616,102.12,102.1,0.19822192]
[1645013720883,84.28837616,102.12,102.1,0.19822192]
[1645013721296,98.0,102.1,102.08,0.39644384]
[1645013721487,39.0,102.09,102.07,0.9542321]
[1645013721686,36.84713082,102.08,102.07,0.9542321]
[1645013721884,37.09713082,102.08,102.07,0.9542321]
[1645013722083,37.09713082,102.08,102.06,1.26302914]
[1645013722284,0.25,102.07,102.06,1.26302914]
[1645013723287,84.0,102.06,102.05,0.54671048]
[1645013723484,84.0,102.06,102.02,1.29836988]
[1645013723485,53.0,102.05,102.02,1.29836988]
[1645013723685,53.25,102.05,102.03,0.20795116]
[1645013724285,92.51164035,102.05,102.03,0.20795116]
[1645013724987,0.25,102.05,102.03,0.20795116]
[1645013725385,0.25,102.06,102.03,0.20795116]
[1645013725986,42.43927607,102.06,102.03,0.20795116]
[1645013728693,42.43927607,102.06,102.04,0.32305557]
[1645013729695,42.43927607,102.06,102.04,0.53100673]
[1645013730195,42.43927607,102.06,102.04,0.20795116]
[1645013730395,42.43927607,102.06,102.05,0.32302392]
[1645013730594,42.18927607,102.06,102.05,0.20795116]
[1645013731896,42.18927607,102.06,102.05,0.00795116]
[1645013732699,22.6785,102.07,102.05,0.00795116]
[1645013732898,0.25,102.06,102.05,0.00795116]
[1645013736506,64.66737061,102.07,102.05,0.00795116]
[1645013736804,22.6785,102.07,102.05,0.00795116]
[1645013737799,0.25,102.06,102.05,0.40795116]
[1645013738498,22.5443,102.11,102.05,0.40795116]
[1645013738699,23.2248,102.1,102.05,0.40795116]
[1645013739398,57.5017267,102.1,102.05,0.40795116]
[1645013740499,37.2435,102.11,102.05,0.40795116]
[1645013740700,37.2435,102.11,102.05,22.18905116]
[1645013740701,22.5443,102.11,102.05,22.18905116]
[1645013740904,1.38470608,102.15,102.05,9.68266447]
[1645013741101,1.38470608,102.15,102.06,24.7913]
[1645013741302,1.38470608,102.15,102.07,97.48]
[1645013741501,41.17418469,102.15,102.07,143.90212817]
[1645013741999,41.17418469,102.15,102.08,112.1716]
[1645013742202,1.38470608,102.16,102.09,38.58177903]
[1645013742401,16.07640608,102.16,102.09,63.10957903]
[1645013742599,0.25,102.15,102.09,63.10957903]
[1645013743301,44.92968359,102.15,102.09,63.10957903]
[1645013743501,68.72978359,102.15,102.09,63.10957903]
[1645013743903,23.8001,102.15,102.09,160.58957903]
[1645013744101,23.8001,102.15,102.09,175.28027903]
[1645013744308,23.8001,102.15,102.09,77.80027903]
[1645013744906,39.13865302,102.14,102.09,77.80027903]
[1645013745103,39.13865302,102.14,102.09,63.10957903]
[1645013745303,0.25,102.13,102.09,63.10957903]
[1645013749909,0.25,102.14,102.09,63.10957903]
[1645013751316,0.25,102.14,102.09,77.80017903]
[1645013755143,0.25,102.14,102.09,175.28017903]
[1645013755340,0.25,102.16,102.09,77.80017903]
[1645013756542,47.48777528,102.16,102.09,77.80017903]
[1645013756943,47.48777528,102.16,102.09,38.58177903]
[1645013757748,0.25,102.16,102.1,97.48]
[1645013757945,0.25,102.16,102.09,38.58177903]
[1645013758346,0.25,102.16,102.09,53.27237903]
[1645013758848,98.81011244,102.17,102.09,53.27237903]
[1645013759245,63.7071,102.17,102.09,53.27237903]
[1645013759445,15.41470608,102.19,102.1,97.48]
[1645013759646,1.38470608,102.19,102.11,135.9498]
[1645013759846,1.38470608,102.19,102.11,23.7823]
[1645013760046,15.41470608,102.19,102.09,38.58177903]
[1645013760249,72.9634156,102.18,102.09,38.58177903]
[1645013760550,42.44153477,102.15,102.09,38.58177903]
[1645013760747,66.54043477,102.15,102.09,38.58177903]
[1645013760949,0.25,102.14,102.09,38.58177903]
[1645013761349,0.25,102.14,102.07,24.3654]
[1645013761751,0.25,102.14,102.06,14.6951]
[1645013761953,14.9455,102.14,102.05,0.40795116]
[1645013762153,23.9333,102.13,102.05,0.40795116]
[1645013762454,47.28160453,102.12,102.05,41.50703548]
[1645013763152,14.6995,102.11,102.05,0.40795116]
[1645013763352,0.25,102.1,102.05,0.40795116]
[1645013764253,41.10471627,102.1,102.05,0.40795116]
[1645013764852,14.7024,102.09,102.05,0.40795116]
[1645013765051,41.10471627,102.1,102.05,0.40795116]
[1645013766353,55.80491627,102.1,102.05,0.40795116]
[1645013772363,14.9502,102.1,102.05,0.40795116]
[1645013772563,0.25,102.1,102.05,97.88795116]
[1645013773165,22.8815,102.11,102.05,97.88795116]
[1645013773368,22.8815,102.11,102.06,46.85242923]
[1645013773566,58.93633272,102.12,102.06,46.85242923]
[1645013773764,58.93633272,102.12,102.06,144.33242923]
[1645013774165,24.4577,102.12,102.06,144.33242923]
[1645013774365,24.4237,102.14,102.06,150.03142923]
[1645013774567,0.25,102.12,102.06,150.03142923]
[1645013775770,26.12130608,102.15,102.06,144.33242923]
[1645013775975,26.12130608,102.15,102.06,166.87024587]
[1645013776170,24.7366,102.15,102.06,166.87024587]
[1645013776969,24.7366,102.15,102.07,0.25]
[1645013777168,24.7366,102.15,102.1,40.04143961]
[1645013778269,24.8838,102.16,102.1,54.73113961]
[1645013778473,0.25,102.14,102.1,54.73113961]
[1645013778971,14.03,102.18,102.1,152.21113961]
[1645013778972,1.38470608,102.18,102.1,152.21113961]
[1645013779175,1.38470608,102.18,102.1,158.39713961]
[1645013779370,26.32490608,102.19,102.1,158.39713961]
[1645013779772,1.38470608,102.19,102.11,0.25]
[1645013779969,1.38470608,102.19,102.11,2.44961664]
[1645013780171,1.38470608,102.21,102.14,97.48]
[1645013780372,1.38470608,102.22,102.14,97.48]
[1645013780978,1.38470608,102.23,102.15,143.20197202]
[1645013781181,1.38470608,102.23,102.16,112.1586]
[1645013781374,1.38470608,102.23,102.17,34.88166582]
[1645013781676,6.11869505,102.24,102.17,132.36166582]
[1645013781874,35.78022637,102.23,102.17,132.36166582]
[1645013782375,0.25,102.22,102.17,132.36166582]
[1645013782976,0.25,102.22,102.17,147.04016582]
[1645013783481,0.25,102.23,102.17,147.04016582]
[1645013783776,0.25,102.24,102.17,147.04016582]
[1645013784581,23.9849,102.25,102.17,147.04016582]
[1645013784782,23.9849,102.25,102.17,154.91016582]
[1645013784984,1.38470608,102.26,102.17,157.11601165]
[1645013785184,1.38470608,102.27,102.18,0.25]
[1645013785384,1.38470608,102.28,102.21,97.48]
[1645013785613,49.75684471,102.29,102.22,47.97096829]
[1645013785811,49.75684471,102.29,102.22,145.45096829]
[1645013786010,48.37213863,102.29,102.22,145.45096829]
[1645013786208,1.38470608,102.3,102.22,145.45096829]
[1645013786410,1.38470608,102.3,102.22,162.32761412]
[1645013786609,1.38470608,102.32,102.22,162.32761412]
[1645013787011,1.38470608,102.32,102.22,160.12176829]
[1645013787210,16.80248078,102.34,102.22,160.12176829]
[1645013787211,38.73613945,102.31,102.22,160.12176829]
[1645013788614,0.25,102.3,102.22,160.12176829]
[1645013789012,0.25,102.3,102.22,62.64176829]
[1645013789214,0.25,102.3,102.22,47.97096829]
[1645013790019,14.9231,102.3,102.22,47.97096829]
[1645013790215,39.89934955,102.29,102.22,47.97096829]
[1645013790417,0.25,102.28,102.22,47.97096829]
[1645013791615,0.25,102.28,102.18,158.8501]
[1645013791815,24.0109,102.28,102.18,144.8201]
[1645013792222,24.0109,102.28,102.19,112.1537]
[1645013792618,24.0109,102.28,102.2,39.25802027]
[1645013793824,24.0109,102.28,102.2,53.93122027]
[1645013794023,45.88988698,102.27,102.2,53.93122027]
[1645013794225,24.0109,102.28,102.2,39.25802027]
[1645013794623,0.25,102.28,102.2,138.9438661]
[1645013794823,0.25,102.28,102.2,39.25802027]
[1645013796926,48.40124651,102.27,102.2,39.25802027]
[1645013797329,0.25,102.26,102.2,39.25802027]
[1645013797529,0.25,102.26,102.2,136.73802027]
[1645013798632,0.25,102.26,102.2,39.25802027]
[1645013805737,49.78595259,102.27,102.2,151.41202027]
[1645013805938,1.38470608,102.28,102.2,153.6178661]
[1645013806140,1.38470608,102.29,102.21,0.25]
[1645013806541,1.38470608,102.29,102.21,2.45584583]
[1645013806942,1.38470608,102.29,102.24,41.46124272]
[1645013807841,0.25,102.28,102.24,41.46124272]
[1645013808239,35.39500477,102.28,102.24,41.46124272]
[1645013808440,35.39500477,102.28,102.21,97.48]
[1645013808641,36.77971085,102.28,102.21,97.48]
[1645013808842,1.38470608,102.27,102.21,97.48]
[1645013809142,1.38470608,102.27,102.2,23.7873]
[1645013809340,48.60991832,102.26,102.2,72.23391891]
[1645013809540,1.38470608,102.25,102.2,48.44661891]
[1645013809743,48.08018251,102.24,102.2,48.44661891]
[1645013810141,0.25,102.23,102.2,48.44661891]
[1645013814167,0.25,102.21,102.15,24.9465]
[1645013814363,0.25,102.21,102.13,97.48]
[1645013814564,1.63470608,102.21,102.13,97.48]
[1645013815164,36.29927208,102.2,102.14,42.98345435]
[1645013815366,0.25,102.19,102.14,42.98345435]
[1645013819868,0.25,102.19,102.14,57.66675435]
[1645013820271,0.25,102.2,102.14,155.14675435]
[1645013820672,0.25,102.2,102.14,157.35260018]
[1645013821071,0.25,102.21,102.14,157.35260018]
[1645013822271,1.38470608,102.22,102.15,0.25]
[1645013822470,1.38470608,102.22,102.17,112.1585]
[1645013822671,51.8567453,102.23,102.18,37.84532372]
[1645013823071,51.8567453,102.23,102.17,2.20584583]
[1645013823272,1.38470608,102.22,102.14,97.48]
[1645013823571,1.38470608,102.22,102.11,24.6772]
[1645013823572,1.38470608,102.21,102.13,14.6838]
[1645013823772,1.38470608,102.2,102.13,14.6838]
[1645013823972,37.57762694,102.2,102.14,41.63353936]
[1645013824171,0.25,102.19,102.14,41.63353936]
[1645013825272,0.25,102.19,102.14,56.31633936]
[1645013825474,0.25,102.19,102.13,97.48]
[1645013826481,14.9362,102.19,102.14,45.97235214]
[1645013826679,0.25,102.19,102.14,45.97235214]
[1645013828077,0.25,102.19,102.14,143.45235214]
[1645013828375,0.25,102.2,102.14,143.45235214]
[1645013828775,0.25,102.21,102.14,143.45235214]
[1645013829177,0.25,102.21,102.14,158.13595214]
[1645013829881,0.25,102.21,102.15,0.25]
[1645013830081,0.25,102.21,102.16,97.48]
[1645013830279,0.25,102.22,102.16,114.36384583]
[1645013830679,0.25,102.22,102.17,137.43915149]
[1645013831378,0.25,102.22,102.18,14.6768]
[1645013831878,0.25,102.22,102.19,97.48]
[1645013832081,0.25,102.22,102.2,0.97541592]
[1645013832281,0.25,102.23,102.21,48.31583971]
[1645013832479,1.38470608,102.24,102.21,48.31583971]
[1645013832881,1.38470608,102.25,102.21,48.31583971]
[1645013833279,1.38470608,102.25,102.21,148.00168554]
[1645013833480,1.38470608,102.26,102.21,48.31583971]
[1645013833681,49.59034873,102.25,102.18,146.393]
[1645013833881,49.59034873,102.25,102.15,62.9276]
[1645013834080,1.38470608,102.24,102.15,62.9276]
[1645013834581,1.38470608,102.24,102.16,97.48]
[1645013834787,43.64632259,102.23,102.18,14.6781]
[1645013834979,0.25,102.23,102.19,41.54451358]
[1645013835181,1.63470608,102.23,102.19,41.54451358]
[1645013835584,1.63470608,102.23,102.15,146.3776]
[1645013835783,1.63470608,102.23,102.17,14.6794]
[1645013836183,1.63470608,102.23,102.17,112.1594]
[1645013836583,1.63470608,102.23,102.18,44.31799888]
[1645013836783,1.63470608,102.23,102.18,58.99599888]
[1645013837884,41.34382976,102.23,102.18,58.99599888]
[1645013839788,1.63470608,102.23,102.18,58.99599888]